bitfinex/quotes_BTCUSD_20241025
["timestamp","ask_amount","ask_price","bid_price","bid_amount"]
[1729832334622,0.00165,67719.0,67718.0,0.64605741]
[1729832334824,0.00165,67719.0,67718.0,0.64405741]
[1729832337008,0.00165,67719.0,67718.0,0.64605741]
[1729832337257,0.00165,67719.0,67718.0,0.64405741]
[1729832337486,0.00165,67719.0,67718.0,0.63905741]
[1729832337939,0.00165,67719.0,67718.0,0.64405741]
[1729832339680,0.00165,67719.0,67718.0,0.97040058]
[1729832339917,0.29790187,67729.0,67728.0,0.152649]
[1729832340142,0.29790187,67729.0,67728.0,0.53603541]
[1729832340394,0.29790187,67729.0,67728.0,0.53403541]
[1729832340637,0.0775,67729.0,67728.0,0.53403541]
[1729832340856,0.0775,67729.0,67728.0,0.43009411]
[1729832345607,0.0775,67729.0,67728.0,0.4387735]
[1729832345828,0.0775,67729.0,67728.0,0.5427148]
[1729832346490,0.0775,67729.0,67728.0,0.4387735]
[1729832349465,0.0775,67729.0,67728.0,0.5427148]
[1729832349688,0.0775,67729.0,67728.0,0.4387735]
[1729832350857,0.296548,67755.0,67728.0,0.4387735]
[1729832350858,0.22040187,67743.0,67740.0,0.147623]
[1729832351078,0.22040187,67743.0,67740.0,0.43206811]
[1729832351332,0.22040187,67743.0,67740.0,0.43006811]
[1729832351333,0.083348,67741.0,67740.0,0.43006811]
[1729832352047,0.083348,67741.0,67740.0,0.43206811]
[1729832352798,0.001648,67741.0,67740.0,0.43206811]
[1729832354799,0.001648,67741.0,67740.0,0.43856515]
[1729832355448,0.001648,67741.0,67740.0,0.65450645]
[1729832355681,0.001648,67741.0,67740.0,0.55056515]
[1729832357009,0.001648,67741.0,67740.0,0.54856515]
[1729832357237,0.001648,67741.0,67740.0,0.55056515]
[1729832357473,0.001648,67741.0,67740.0,0.54856515]
[1729832357703,0.001648,67741.0,67740.0,0.55056515]
[1729832358183,0.001648,67741.0,67740.0,0.54856515]
[1729832358641,0.001648,67741.0,67740.0,0.55056515]
[1729832359098,0.001648,67741.0,67740.0,0.53856515]
[1729832359856,0.174248,67741.0,67740.0,0.15612004]
[1729832361043,0.174248,67741.0,67740.0,0.147623]
[1729832361533,0.1879818,67741.0,67740.0,0.147623]
[1729832361818,0.1879818,67741.0,67723.0,0.005]
[1729832362079,0.1879818,67741.0,67730.0,0.22040187]
[1729832362080,0.1039413,67739.0,67730.0,0.22040187]
[1729832362336,0.0817,67736.0,67730.0,0.22040187]
[1729832362578,0.0137338,67735.0,67732.0,0.147639]
[1729832362821,0.0817,67736.0,67734.0,0.147636]
[1729832363031,0.03569613,67735.0,67734.0,0.147636]
[1729832363516,0.01372928,67735.0,67734.0,0.147636]
[1729832365025,0.0817,67736.0,67732.0,0.295277]
[1729832365245,0.0817,67736.0,67735.0,0.147634]
[1729832365462,0.09542953,67736.0,67735.0,0.147634]
[1729832366554,0.0817,67736.0,67735.0,0.147634]
[1729832371640,0.0817,67736.0,67732.0,0.147639]
[1729832371931,0.0817,67736.0,67728.0,0.00867671]
[1729832372165,0.0817,67736.0,67732.0,0.147638]
[1729832372885,0.0817,67736.0,67729.0,0.295294]
[1729832372886,0.08,67734.0,67733.0,0.147638]
[1729832374300,0.09372983,67734.0,67733.0,0.147638]
[1729832374534,0.08,67734.0,67733.0,0.147638]
[1729832376213,0.1796,67734.0,67730.0,0.147643]
[1729832376434,0.15236823,67741.0,67722.0,0.295323]
[1729832376435,0.08,67732.0,67731.0,0.14764]
[1729832376654,0.1796,67732.0,67731.0,0.14764]
[1729832381754,0.0996,67732.0,67729.0,0.147646]
[1729832381975,0.0778,67731.0,67729.0,0.147646]
[1729832382237,0.0778,67731.0,67730.0,0.147645]
[1729832382703,0.09152143,67731.0,67730.0,0.147645]
[1729832382931,0.1772,67731.0,67730.0,0.147645]
[1729832383151,0.19092145,67731.0,67730.0,0.147645]
[1729832383887,0.1772,67731.0,67730.0,0.147645]
[1729832387345,0.19093614,67731.0,67730.0,0.147645]
[1729832387568,0.1772,67731.0,67730.0,0.147645]
[1729832388263,0.190942,67731.0,67730.0,0.147645]
[1729832389371,0.1772,67731.0,67730.0,0.147645]
[1729832389580,0.19095032,67731.0,67730.0,0.147645]
[1729832397343,0.21296753,67731.0,67730.0,0.147645]
[1729832397531,0.22397613,67731.0,67730.0,0.147645]
[1729832397791,0.19095032,67731.0,67730.0,0.147645]
[1729832398719,0.0778,67729.0,67723.0,0.00857298]
[1729832398937,0.0778,67729.0,67728.0,0.147649]
[1729832399177,0.11358715,67729.0,67728.0,0.147649]
[1729832399407,0.22399858,67729.0,67728.0,0.147649]
[1729832399833,0.1772,67728.0,67727.0,0.147651]
[1729832400072,0.21298715,67728.0,67727.0,0.147651]
[1729832400289,0.21298715,67728.0,67724.0,0.295316]
[1729832400290,0.0994,67727.0,67724.0,0.295316]
[1729832400504,0.04679858,67728.0,67724.0,0.295316]
[1729832400505,0.0778,67726.0,67725.0,0.147655]
[1729832400741,0.21298715,67726.0,67725.0,0.147655]
[1729832400974,0.22399858,67726.0,67725.0,0.147655]
[1729832402335,0.0778,67725.0,67723.0,0.295319]
[1729832402554,0.0778,67725.0,67724.0,0.147656]
[1729832402829,0.12458469,67725.0,67724.0,0.147656]
[1729832403071,0.11357653,67725.0,67724.0,0.147656]
[1729832403298,0.12458469,67725.0,67724.0,0.147656]
[1729832404436,0.11357653,67725.0,67724.0,0.147656]
[1729832404895,0.0915602,67725.0,67724.0,0.147656]
[1729832406972,0.0915602,67725.0,67721.0,0.295329]
[1729832407190,0.0915602,67725.0,67720.0,0.295333]
[1729832407413,0.0137602,67724.0,67723.0,0.14766]
[1729832407629,0.1918602,67724.0,67723.0,0.14766]
[1729832410056,0.1918602,67724.0,67720.0,0.295333]
[1729832410057,0.1781,67723.0,67719.0,0.000824]
[1729832410335,0.53354742,67720.0,67719.0,0.000824]
[1729832410552,0.62968224,67720.0,67719.0,0.000824]
[1729832410785,0.66267925,67720.0,67719.0,0.000824]
[1729832411450,0.66266603,67720.0,67719.0,0.000824]
[1729832412118,0.6406856,67720.0,67719.0,0.000824]
[1729832413925,0.66264675,67720.0,67719.0,0.000824]
[1729832414425,0.6406856,67720.0,67719.0,0.000824]
[1729832414615,0.64059491,67720.0,67719.0,0.000824]
[1729832415298,0.66254982,67720.0,67719.0,0.000824]
[1729832415511,0.64059491,67720.0,67719.0,0.000824]
[1729832418245,0.61583773,67720.0,67719.0,0.000824]
[1729832418462,0.62954941,67720.0,67719.0,0.000824]
[1729832418681,0.64051875,67720.0,67719.0,0.000824]
[1729832421864,0.59112986,67720.0,67719.0,0.000824]
[1729832422092,0.62951732,67720.0,67719.0,0.000824]
[1729832422307,0.6404855,67720.0,67719.0,0.000824]
[1729832422961,0.66242096,67720.0,67719.0,0.000824]
[1729832423181,0.6404855,67720.0,67719.0,0.000824]
[1729832423827,0.65145168,67720.0,67719.0,0.000824]
[1729832424046,0.62951732,67720.0,67719.0,0.000824]
[1729832424261,0.65645046,67720.0,67719.0,0.000824]
[1729832424914,0.66741776,67720.0,67719.0,0.000824]
[1729832425585,0.65645128,67720.0,67719.0,0.000824]
[1729832426023,0.65809928,67720.0,67719.0,0.000824]
[1729832426235,0.66906709,67720.0,67719.0,0.000824]
[1729832429045,0.92346161,67720.0,67719.0,0.000824]
[1729832429274,0.92346161,67720.0,67704.0,0.000824]
[1729832429275,0.27739071,67705.0,67704.0,0.000824]
[1729832429526,0.18721651,67705.0,67704.0,0.000824]
[1729832430397,0.02194642,67713.0,67712.0,0.147684]
[1729832430631,0.0818,67716.0,67713.0,0.147682]
[1729832430849,0.01371943,67715.0,67713.0,0.147682]
[1729832431069,0.01371943,67714.0,67713.0,0.14768]
[1729832431508,0.01371943,67714.0,67709.0,0.295379]
[1729832431725,0.01371943,67713.0,67711.0,0.147686]
[1729832431949,0.0818,67716.0,67711.0,0.147686]
[1729832432193,0.01372095,67715.0,67711.0,0.147686]
[1729832432420,0.01372095,67714.0,67711.0,0.147686]
[1729832432631,0.01372095,67713.0,67711.0,0.147686]
[1729832432846,0.01372095,67712.0,67711.0,0.147686]
[1729832435113,0.01372095,67712.0,67709.0,0.443068]
[1729832435340,0.01372095,67711.0,67710.0,0.147688]
[1729832435792,0.01372095,67711.0,67708.0,0.147692]
[1729832436023,0.01372095,67710.0,67708.0,0.147692]
[1729832436294,0.18569071,67716.0,67708.0,0.147692]
[1729832436511,0.01372982,67709.0,67708.0,0.147692]
[1729832436721,0.03570385,67715.0,67708.0,0.147692]
[1729832437065,0.0917,67713.0,67706.0,0.147695]
[1729832437275,0.0917,67713.0,67704.0,0.148524]
[1729832437479,0.0773,67712.0,67704.0,0.000824]
[1729832437693,0.0773,67712.0,67704.0,0.148524]
[1729832437896,0.0882904,67712.0,67704.0,0.000824]
[1729832438099,0.0882904,67712.0,67704.0,0.148524]
[1729832438518,0.03571711,67711.0,67704.0,0.148525]
[1729832438939,0.03571711,67710.0,67704.0,0.148525]
[1729832439389,0.03571711,67710.0,67704.0,0.000824]
[1729832439608,0.03571711,67709.0,67704.0,0.148524]
[1729832439813,0.0109904,67709.0,67704.0,0.000824]
[1729832440410,0.0247454,67708.0,67704.0,0.148525]
[1729832440613,0.0109904,67707.0,67705.0,0.147697]
[1729832440899,0.0773,67712.0,67704.0,0.000824]
[1729832441099,0.10389071,67707.0,67704.0,0.000824]
[1729832441308,0.19445882,67706.0,67704.0,0.000824]
[1729832441531,0.02475882,67705.0,67704.0,0.000824]
[1729832442179,0.10205627,67705.0,67704.0,0.000824]
[1729832449730,0.0924,67706.0,67704.0,0.000824]
[1729832449731,0.0924,67711.0,67704.0,0.000824]
[1729832449936,0.09104382,67710.0,67704.0,0.148525]
[1729832450148,0.02473872,67709.0,67704.0,0.148525]
[1729832450361,0.0109949,67709.0,67705.0,0.0461105]
[1729832450800,0.0109949,67708.0,67705.0,0.0461105]
[1729832451022,0.0109949,67707.0,67705.0,0.0461105]
[1729832451240,0.0109949,67706.0,67705.0,0.0461105]
[1729832451453,0.01099548,67706.0,67705.0,0.0461105]
[1729832451911,0.01099548,67706.0,67704.0,0.000824]
[1729832452137,0.01374436,67709.0,67704.0,0.000824]
[1729832452372,0.0773,67710.0,67704.0,0.000824]
[1729832452373,0.01099536,67708.0,67705.0,0.04611534]
[1729832452611,0.01099536,67707.0,67705.0,0.04611534]
[1729832453599,0.01099536,67706.0,67704.0,0.000824]
[1729832453846,0.0773,67710.0,67705.0,0.04612586]
[1729832454080,0.02473933,67709.0,67705.0,0.04612586]
[1729832454310,0.01099526,67708.0,67705.0,0.04612586]
[1729832454528,0.01099526,67707.0,67705.0,0.04612586]
[1729832454737,0.01099526,67706.0,67705.0,0.04612586]
[1729832456239,0.01099526,67706.0,67704.0,0.000824]
[1729832456452,0.01374407,67709.0,67704.0,0.000824]
[1729832456453,0.01374341,67709.0,67704.0,0.000824]
[1729832456682,0.01374341,67708.0,67704.0,0.000824]
[1729832456899,0.01099473,67708.0,67705.0,0.04612938]
[1729832457111,0.01374341,67708.0,67705.0,0.04612938]
[1729832457329,0.01374341,67709.0,67704.0,0.000824]
[1729832457549,0.0773,67710.0,67704.0,0.000824]
[1729832457550,0.01099478,67708.0,67704.0,0.000824]
[1729832457763,0.01099478,67707.0,67704.0,0.000824]
[1729832457973,0.01099478,67706.0,67704.0,0.000824]
[1729832458197,0.01374388,67709.0,67704.0,0.000824]
[1729832458415,0.147696,67707.0,67704.0,0.000824]
[1729832458631,0.02473857,67706.0,67704.0,0.000824]
[1729832458845,0.08989469,67705.0,67704.0,0.000824]
[1729832459074,0.10363857,67705.0,67704.0,0.000824]
[1729832459360,0.35083757,67705.0,67704.0,0.000824]
[1729832459816,0.20313857,67705.0,67704.0,0.04695178]
[1729832460053,0.20313648,67705.0,67704.0,0.04695178]
[1729832460494,0.35083548,67705.0,67704.0,0.04695178]
[1729832460750,0.20313648,67705.0,67704.0,0.04695178]
[1729832461205,0.35083548,67705.0,67704.0,0.04695178]
[1729832461470,0.35083548,67705.0,67704.0,0.000824]
[1729832461691,0.35083548,67705.0,67704.0,0.0469501]
[1729832462345,0.35083548,67705.0,67704.0,0.000824]
[1729832463756,0.326099,67705.0,67704.0,0.000824]
[1729832463999,0.3398435,67705.0,67704.0,0.000824]
[1729832464218,0.44373421,67705.0,67704.0,0.000824]
[1729832464655,0.45472979,67705.0,67704.0,0.000824]
[1729832464871,0.30703079,67705.0,67704.0,0.000824]
[1729832465093,0.45472979,67705.0,67704.0,0.000824]
[1729832466850,0.35083908,67705.0,67704.0,0.000824]
[1729832467352,0.1784,67705.0,67704.0,0.000824]
[1729832467594,0.2031492,67705.0,67704.0,0.000824]
[1729832469306,0.2031492,67705.0,67702.0,0.04175228]
[1729832469518,0.0247492,67704.0,67700.0,0.000825]
[1729832469742,0.01374956,67703.0,67701.0,0.26651997]
[1729832469958,0.01374956,67703.0,67702.0,0.147706]
[1729832469959,0.01099964,67703.0,67702.0,0.147706]
[1729832470191,0.0789,67705.0,67703.0,0.147701]
[1729832470636,0.01100242,67704.0,67700.0,0.000825]
[1729832470883,0.01100242,67704.0,67702.0,0.147705]
[1729832471170,0.0789,67705.0,67702.0,0.147705]
[1729832471171,0.01100242,67703.0,67702.0,0.147705]
[1729832471379,0.01100242,67703.0,67702.0,0.04611883]
[1729832472240,0.01100242,67703.0,67702.0,0.14853]
[1729832472722,0.01100242,67703.0,67702.0,0.000824]
[1729832473169,0.11020242,67703.0,67702.0,0.000824]
[1729832473402,0.12395792,67703.0,67702.0,0.000824]
[1729832474554,0.1129555,67703.0,67702.0,0.000824]
[1729832474866,0.12396002,67703.0,67702.0,0.000824]
[1729832476044,0.12396002,67703.0,67702.0,0.0469437]
[1729832476287,0.01100452,67703.0,67702.0,0.1946497]
[1729832476766,0.01100452,67703.0,67702.0,0.14853]
[1729832477000,0.01100452,67703.0,67702.0,0.04612243]
[1729832477219,0.01100452,67703.0,67700.0,0.000825]
[1729832477467,0.01100452,67702.0,67701.0,0.147708]
[1729832478153,0.0789,67705.0,67701.0,0.147708]
[1729832478385,0.0789,67705.0,67700.0,0.000825]
[1729832478646,0.0247649,67704.0,67700.0,0.000825]
[1729832478891,0.01100668,67704.0,67700.0,0.000825]
[1729832479110,0.0815,67702.0,67700.0,0.000825]
[1729832479330,0.01100668,67701.0,67700.0,0.000825]
[1729832480226,0.02476404,67701.0,67700.0,0.000825]
[1729832480445,0.02476462,67701.0,67700.0,0.000825]
[1729832481566,0.03400086,67701.0,67700.0,0.000825]
[1729832481784,0.02476462,67701.0,67700.0,0.000825]
[1729832482006,0.04500675,67701.0,67700.0,0.000825]
[1729832482232,0.03400007,67701.0,67700.0,0.000825]
[1729832483180,0.02476389,67701.0,67700.0,0.000825]
[1729832484067,0.03399994,67701.0,67700.0,0.000825]
[1729832484932,0.02476389,67701.0,67700.0,0.000825]
[1729832485161,0.03399992,67701.0,67700.0,0.000825]
[1729832485409,0.02024205,67701.0,67700.0,0.000825]
[1729832485645,0.02299497,67701.0,67700.0,0.000825]
[1729832485880,0.03400206,67701.0,67700.0,0.000825]
[1729832486763,0.18171006,67701.0,67700.0,0.000825]
[1729832486974,0.36341006,67701.0,67700.0,0.000825]
[1729832488888,0.21570206,67701.0,67700.0,0.04694578]
[1729832489130,0.34316687,67701.0,67700.0,0.000825]
[1729832489333,0.20469499,67701.0,67700.0,0.000825]
[1729832489548,0.19969499,67701.0,67700.0,0.000825]
[1729832489767,0.21070637,67701.0,67700.0,0.09121899]
[1729832490059,0.35841437,67701.0,67700.0,0.09121899]
[1729832490664,0.35841437,67701.0,67700.0,0.000825]
[1729832490878,0.35841437,67701.0,67694.0,0.04427584]
[1729832491109,0.0202475,67700.0,67693.0,0.000825]
[1729832491376,0.01101138,67700.0,67693.0,0.000825]
[1729832491592,0.02024761,67699.0,67694.0,0.04612304]
[1729832491802,0.01101138,67699.0,67693.0,0.148548]
[1729832491989,0.01101138,67698.0,67694.0,0.046123]
[1729832492234,0.01101138,67697.0,67693.0,0.000825]
[1729832492681,0.01101138,67696.0,67693.0,0.000825]
[1729832492909,0.01101138,67696.0,67694.0,0.04612168]
[1729832493358,0.01101138,67695.0,67694.0,0.04612168]
[1729832493570,0.01101138,67695.0,67693.0,0.000825]
[1729832494053,0.15694736,67700.0,67694.0,0.0461251]
[1729832494265,0.0110132,67694.0,67693.0,0.000825]
[1729832494481,0.0110132,67694.0,67693.0,0.08936671]
[1729832494698,0.0110132,67694.0,67693.0,0.13548695]
[1729832496044,0.15694743,67700.0,67693.0,0.13548695]
[1729832496045,0.147716,67698.0,67693.0,0.13548695]
[1729832496268,0.28559071,67694.0,67693.0,0.000825]
[1729832496496,0.44432563,67694.0,67693.0,0.000825]
[1729832496724,0.2019488,67694.0,67693.0,0.000825]
[1729832497381,0.2019488,67694.0,67693.0,0.04694684]
[1729832497603,0.19093688,67694.0,67693.0,0.04694684]
[1729832497892,0.2019488,67694.0,67693.0,0.04694684]
[1729832498557,0.19271192,67694.0,67693.0,0.14855]
[1729832498783,0.01101192,67694.0,67693.0,0.14855]
[1729832498994,0.0824,67698.0,67695.0,0.147719]
[1729832499213,0.0110049,67697.0,67696.0,0.147719]
[1729832499449,0.0110049,67697.0,67696.0,0.19384128]
[1729832499685,0.01088688,67701.0,67696.0,0.04612228]
[1729832499902,0.01088688,67701.0,67697.0,0.147716]
[1729832500369,0.03576778,67700.0,67697.0,0.147716]
[1729832500593,0.03576755,67700.0,67696.0,0.147717]
[1729832500814,0.03576937,67699.0,67697.0,0.0461244]
[1729832501033,0.03576937,67699.0,67698.0,0.06641152]
[1729832501034,0.01375745,67699.0,67698.0,0.06641152]
[1729832501232,0.03576997,67699.0,67698.0,0.11253592]
[1729832501699,0.03576997,67699.0,67697.0,0.147716]
[1729832501916,0.03576997,67698.0,67696.0,0.08854171]
[1729832502131,0.03301629,67700.0,67697.0,0.04612478]
[1729832502356,0.03301629,67700.0,67699.0,0.147712]
[1729832502588,0.06879032,67700.0,67699.0,0.147712]
[1729832502818,0.06879032,67700.0,67699.0,0.04612478]
[1729832503294,0.06879032,67700.0,67699.0,0.19383678]
[1729832503536,0.06879032,67700.0,67699.0,0.147712]
[1729832506259,0.06879032,67700.0,67699.0,0.15604992]
[1729832507316,0.06879032,67700.0,67697.0,0.147716]
[1729832507523,0.03577403,67699.0,67698.0,0.147714]
[1729832508798,0.03577403,67699.0,67695.0,0.30388425]
[1729832509008,0.03301629,67700.0,67695.0,0.30388425]
[1729832509009,0.03577403,67698.0,67696.0,0.147717]
[1729832509255,0.01375924,67697.0,67696.0,0.147717]
[1729832509709,0.03577542,67697.0,67696.0,0.147717]
[1729832510141,0.03577542,67697.0,67694.0,0.000825]
[1729832510348,0.01375924,67696.0,67695.0,0.14772]
[1729832510842,0.01376025,67696.0,67695.0,0.147721]
[1729832514273,0.01376055,67696.0,67694.0,0.40015971]
[1729832514484,0.01376041,67695.0,67694.0,0.148548]
[1729832514949,0.03577658,67695.0,67694.0,0.148548]
[1729832515802,0.01376041,67695.0,67694.0,0.148548]
[1729832520791,0.00165,67701.0,67694.0,0.000825]
[1729832521002,0.00165,67701.0,67700.0,0.14771]
[1729832521233,0.03742606,67701.0,67700.0,0.14771]
[1729832522544,0.03742606,67701.0,67698.0,0.147714]
[1729832522748,0.03577606,67700.0,67699.0,0.147712]
[1729832525390,0.03577606,67700.0,67697.0,0.147715]
[1729832525615,0.00165,67701.0,67696.0,0.147717]
[1729832525616,0.0975,67698.0,67696.0,0.147717]
[1729832525876,0.01376002,67697.0,67696.0,0.147717]
[1729832526352,0.03577857,67697.0,67696.0,0.147717]
[1729832526587,0.11137857,67697.0,67696.0,0.147717]
[1729832528400,0.1114122,67697.0,67696.0,0.147717]
[1729832528833,0.1114122,67697.0,67694.0,0.148547]
[1729832529063,0.00165,67701.0,67694.0,0.000825]
[1729832529064,0.1731,67695.0,67694.0,0.000825]
[1729832529303,0.36586952,67695.0,67694.0,0.000825]
[1729832529552,0.48353391,67695.0,67694.0,0.000825]
[1729832530633,0.3796432,67695.0,67694.0,0.000825]
[1729832531792,0.37962339,67695.0,67694.0,0.000825]
[1729832533152,0.40253216,67695.0,67694.0,0.000825]
[1729832535204,0.37962339,67695.0,67694.0,0.000825]
[1729832536428,0.37953177,67695.0,67694.0,0.000825]
[1729832538645,0.3657779,67695.0,67694.0,0.000825]
[1729832538854,0.37951431,67695.0,67694.0,0.000825]
[1729832540201,0.23179331,67695.0,67694.0,0.000825]
[1729832540693,0.20881945,67695.0,67694.0,0.148548]
[1729832540912,0.08933825,67695.0,67694.0,0.148548]
[1729832541569,0.01373825,67695.0,67694.0,0.148548]
[1729832543814,0.00165,67697.0,67696.0,0.147719]
[1729832544047,0.01539045,67697.0,67696.0,0.25160971]
[1729832544267,0.0798,67695.0,67694.0,0.000825]
[1729832544522,0.09354045,67695.0,67694.0,0.148548]
[1729832544946,0.11552342,67695.0,67694.0,0.148548]
[1729832545784,0.11552372,67695.0,67694.0,0.148548]
[1729832551235,0.11552372,67695.0,67694.0,0.25243871]
[1729832551658,0.11552372,67695.0,67694.0,0.148548]
[1729832553134,0.21063525,67695.0,67694.0,0.148548]
[1729832553963,0.21063525,67695.0,67694.0,0.128548]
[1729832555261,0.21063525,67695.0,67693.0,0.14855]
[1729832555470,0.26325825,67694.0,67693.0,0.000825]
[1729832555896,0.28624468,67694.0,67693.0,0.000825]
[1729832556572,0.1247893,67694.0,67693.0,0.000825]
[1729832556796,0.13854008,67694.0,67693.0,0.000825]
[1729832557008,0.38136308,67694.0,67693.0,0.000825]
[1729832557895,0.23364008,67694.0,67693.0,0.000825]
[1729832558359,0.38136308,67694.0,67693.0,0.000825]
[1729832559258,0.23364008,67694.0,67693.0,0.000825]
[1729832559479,0.53186689,67694.0,67693.0,0.000825]
[1729832559979,0.38414389,67694.0,67693.0,0.000825]
[1729832560183,0.53187862,67694.0,67693.0,0.000825]
[1729832560407,0.38415562,67694.0,67693.0,0.000825]
[1729832560847,0.32540381,67694.0,67693.0,0.000825]
[1729832561059,0.47312681,67694.0,67693.0,0.000825]
[1729832561935,0.50987561,67694.0,67693.0,0.000825]
[1729832562155,0.51812906,67694.0,67693.0,0.000825]
[1729832563202,0.53188483,67694.0,67693.0,0.000825]
[1729832563410,0.63577554,67694.0,67693.0,0.000825]
[1729832564516,0.64953235,67694.0,67693.0,0.000825]
[1729832564941,0.63577658,67694.0,67693.0,0.000825]
[1729832566810,0.84736896,67694.0,67693.0,0.000825]
[1729832567046,0.67747453,67694.0,67693.0,0.000825]
[1729832567278,0.9438089,67694.0,67693.0,0.000825]
[1729832567521,1.03681423,67694.0,67693.0,0.000825]
[1729832567768,0.89122585,67694.0,67693.0,0.000825]
[1729832569792,0.89121999,67694.0,67693.0,0.000825]
[1729832570441,0.152732,67690.0,67689.0,0.000825]
[1729832570656,0.80131447,67690.0,67689.0,0.000825]
[1729832570868,0.88930077,67690.0,67689.0,0.000825]
[1729832571079,0.79631447,67690.0,67689.0,0.000825]
[1729832571288,0.80131447,67690.0,67689.0,0.000825]
[1729832571506,0.8893012,67690.0,67689.0,0.000825]
[1729832571721,0.8843012,67690.0,67689.0,0.000825]
[1729832571954,0.78041049,67690.0,67689.0,0.000825]
[1729832572181,0.173,67689.0,67681.0,0.00010891]
[1729832572410,0.0751,67687.0,67684.0,0.22040187]
[1729832572633,0.0979,67685.0,67681.0,0.00010891]
[1729832572846,0.13384429,67684.0,67681.0,0.14785991]
[1729832573063,0.03574907,67683.0,67681.0,0.00010891]
[1729832573279,0.03574907,67682.0,67681.0,0.00010891]
[1729832574638,0.20874907,67682.0,67681.0,0.00010891]
[1729832575140,0.01374964,67682.0,67681.0,0.25175062]
[1729832575374,0.01374964,67682.0,67681.0,0.14785991]
[1729832577491,0.0751,67688.0,67684.0,0.147745]
[1729832577720,0.0751,67688.0,67681.0,0.00010891]
[1729832577721,0.04497848,67687.0,67681.0,0.00010891]
[1729832577952,0.04497848,67686.0,67683.0,0.295493]
[1729832578183,0.03574052,67685.0,67684.0,0.147745]
[1729832579367,0.0449788,67685.0,67684.0,0.147745]
[1729832579637,0.03574052,67685.0,67684.0,0.147745]
[1729832579861,0.04497878,67685.0,67684.0,0.147745]
[1729832580357,0.05872576,67685.0,67684.0,0.147745]
[1729832580603,0.04497878,67685.0,67684.0,0.147745]
[1729832581121,0.03574052,67685.0,67684.0,0.147745]
[1729832588061,0.0751,67688.0,67687.0,0.147738]
[1729832588305,0.1108948,67688.0,67687.0,0.147738]
[1729832589238,0.1201321,67688.0,67687.0,0.147738]
[1729832589447,0.13389937,67688.0,67687.0,0.147738]
[1729832590992,0.13389937,67688.0,67686.0,0.14774]
[1729832591232,0.15109937,67687.0,67686.0,0.14774]
[1729832591454,0.15109761,67687.0,67686.0,0.14774]
[1729832591675,0.23229761,67687.0,67686.0,0.14774]
[1729832593616,0.1735,67685.0,67681.0,0.00010891]
[1729832593881,0.147749,67682.0,67681.0,0.00010891]
[1729832594130,0.23229761,67682.0,67681.0,0.00010891]
[1729832594350,0.40298525,67682.0,67681.0,0.00010891]
[1729832594585,0.27726107,67682.0,67681.0,0.00010891]
[1729832595062,0.55257524,67682.0,67681.0,0.00010891]
[1729832596278,0.59657145,67682.0,67681.0,0.00010891]
[1729832596497,0.71298906,67682.0,67681.0,0.00010891]
[1729832596725,0.66899285,67682.0,67681.0,0.00010891]
[1729832597902,0.73498717,67682.0,67681.0,0.00010891]
[1729832597906,0.91938733,67682.0,67681.0,0.00010891]
[1729832598999,0.80296972,67682.0,67681.0,0.00010891]
[1729832599210,0.71497729,67682.0,67681.0,0.00010891]
[1729832599865,0.80296972,67682.0,67681.0,0.00010891]
[1729832600323,0.71497729,67682.0,67681.0,0.00010891]
[1729832600544,0.71997729,67682.0,67681.0,0.00010891]
[1729832600786,0.8704811,67682.0,67681.0,0.00010891]
[1729832601003,0.98047164,67682.0,67681.0,0.00010891]
[1729832601219,0.8704811,67682.0,67681.0,0.00010891]
[1729832601673,0.98047164,67682.0,67681.0,0.00010891]
[1729832601886,0.70807905,67682.0,67681.0,0.00010891]
[1729832602121,0.147762,67676.0,67675.0,0.21992765]
[1729832602342,0.1809,67675.0,67674.0,0.497]
[1729832602565,0.23969761,67675.0,67674.0,0.497]
[1729832603707,0.38746261,67675.0,67674.0,0.497]
[1729832604136,0.23969761,67675.0,67674.0,0.497]
[1729832605197,0.38746261,67675.0,67674.0,0.497]
[1729832605450,0.62801266,67675.0,67674.0,0.497]
[1729832605664,0.64174833,67675.0,67674.0,0.497]
[1729832606547,0.74750835,67675.0,67674.0,0.36249984]
[1729832606801,0.80160727,67675.0,67674.0,0.26249984]
[1729832607035,0.97320474,67675.0,67674.0,0.18439984]
[1729832607753,0.77872071,67675.0,67674.0,0.18439984]
[1729832608231,1.05176229,67675.0,67674.0,0.18439984]
[1729832608481,0.96380184,67675.0,67674.0,0.18439984]
[1729832608953,1.05165627,67675.0,67674.0,0.18439984]
[1729832609187,0.96377053,67675.0,67674.0,0.18439984]
[1729832609415,1.05692216,67675.0,67674.0,0.18439984]
[1729832609872,0.94090077,67675.0,67674.0,0.18439984]
[1729832611188,0.74067589,67675.0,67674.0,0.18439984]
[1729832611421,0.83532449,67675.0,67674.0,0.18439984]
[1729832611643,0.65555369,67675.0,67674.0,0.18439984]
[1729832611858,0.63358131,67675.0,67674.0,0.18439984]
[1729832612337,0.63354298,67675.0,67674.0,0.18439984]
[1729832612970,0.67246087,67675.0,67674.0,0.18439984]
[1729832613295,0.63354298,67675.0,67674.0,0.18439984]
[1729832613476,0.67746087,67675.0,67674.0,0.18439984]
[1729832613697,0.79565628,67675.0,67674.0,0.18439984]
[1729832614121,0.75173839,67675.0,67674.0,0.18439984]
[1729832614328,0.63354298,67675.0,67674.0,0.18439984]
[1729832614966,0.62854298,67675.0,67674.0,0.18439984]
[1729832615187,0.62854298,67675.0,67674.0,0.18522384]
[1729832615415,0.44929098,67675.0,67674.0,0.18522384]
[1729832615893,0.30152494,67675.0,67674.0,0.18522384]
[1729832616113,0.01536307,67675.0,67674.0,0.18522384]
[1729832617008,0.03730719,67675.0,67674.0,0.18522384]
[1729832617871,0.03730719,67675.0,67674.0,0.33628576]
[1729832617872,0.01536307,67675.0,67674.0,0.33628576]
[1729832618083,0.01536307,67675.0,67674.0,0.56225276]
[1729832618974,0.01536307,67675.0,67674.0,0.41448576]
[1729832619195,0.001648,67675.0,67674.0,0.41448576]
[1729832619408,0.01537295,67675.0,67674.0,0.41448576]
[1729832620302,0.01537295,67675.0,67674.0,0.56225276]
[1729832620518,0.001648,67675.0,67674.0,0.96431849]
[1729832620735,0.001648,67675.0,67674.0,0.83625657]
[1729832621213,0.001648,67675.0,67674.0,0.68519465]
[1729832621441,0.001648,67675.0,67674.0,0.83625657]
[1729832623435,0.001648,67675.0,67674.0,0.98731849]
[1729832623855,0.001648,67675.0,67674.0,0.99731849]
[1729832624487,0.001648,67675.0,67674.0,1.09731849]